[Event "DVM U14 2019"]
[Site "Magedburg"]
[Date "2019.12.27"]
[Round "2"]
[White "Nourzad, Shayan"]
[Black "Müller, Magnus"]
[Result "0-1"]
[ECO "A46"]
[WhiteElo "1782"]
[BlackElo "2055"]
[Annotator "NA"]
[PlyCount "52"]
[EventDate "2019.12.27"]
[EventType "team-tourn"]
[EventRounds "7"]
[EventCountry "GER"]
[SourceTitle "playchess.com"]
[Source "ChessBase"]
[SourceQuality "1"]
[WhiteTeam "SchachAkademiePaderborn"]
[BlackTeam "ESV Gera"]
[TimeControl "40/5400+30:1800+30"]

1. d4 {[%emt 0:00:00]} Nf6 {[%emt 0:00:11]} 2. Nf3 {[%emt 0:00:00]} d5 {[%emt 0:00:09]} 3. g3 {[%emt 0:00:05]} e6 {[%emt 0:01:45]} 4. Bg2 {[%emt 0:00:13]} Be7 {[%emt 0:00:04]} 5. O-O {[%emt 0:00:10]} O-O {[%emt 0:00:02]} 6. c4 {[%emt 0:00:10]} dxc4 {[%emt 0:00:02]} 7. Ne5 {[%emt 0:00:11]} Nc6 {[%emt 0:00:04]} 8. Nxc6 {[%emt 0:00:27]} bxc6 {[%emt 0:00:03]} 9. Na3 {[%emt 0:00:14]} Bxa3 {[%emt 0:01:22]} 10. bxa3 {[%emt 0:00:22]} Ba6 {[%emt 0:05:24]} 11. Qa4 {[%emt 0:00:37]} Bb5 {[%emt 0:11:49]} 12. Qa5 {[%emt 0:17:07]} Qc8 {[%emt 0:01:18]} 13. Bf4 {[%emt 0:12:51]} Nd5 {[%emt 0:13:34]} 14. Bxd5 {[%emt 0:04:48]} exd5 {[%emt 0:00:11]} 15. Bxc7 {[%emt 0:01:34]} c3 {[%emt 0:01:17]} 16. Rfe1 {[%emt 0:03:42]} Re8 {[%emt 0:05:27]} 17. e3 {[%emt 0:00:21]} c2 {[%emt 0:02:58]} 18. Bd6 {[%emt 0:01:39]} Qf5 {[%emt 0:04:01]} 19. Qd2 {[%emt 0:06:01]} Re6 {[%emt 0:02:39]} 20. Bc5 {[%emt 0:01:12]} Rae8 {[%emt 0:02:01]} 21. Rac1 {[%emt 0:03:09]} Bd3 {[%emt 0:00:11]} 22. Bxa7 {[%emt 0:18:49]} h5 {[%emt 0:01:55]} 23. Re2 {[%emt 0:09:49]} h4 {[%emt 0:05:42]} 24. f3 {[%emt 0:13:02]} hxg3 {[%emt 0:00:34]} 25. hxg3 {[%emt 0:00:21]} Bxe2 {[%emt 0:00:12]} 26. Qxe2 {[%emt 0:00:31]} Rxe3 {[%emt 0:00:07] normal} 0-1

[Event "DVM U14 2019"]
[Site "Magedburg"]
[Date "2019.12.27"]
[Round "2"]
[White "Huo, Da"]
[Black "Beck, Felix"]
[Result "1-0"]
[ECO "B18"]
[WhiteElo "1771"]
[BlackElo "1508"]
[Annotator "NA"]
[PlyCount "61"]
[EventDate "2019.12.27"]
[EventType "team-tourn"]
[EventRounds "7"]
[EventCountry "GER"]
[SourceTitle "playchess.com"]
[Source "ChessBase"]
[SourceQuality "1"]
[WhiteTeam "Hamburger SK"]
[BlackTeam "SF Nordost Berlin"]
[TimeControl "40/5400+30:1800+30"]

1. e4 {[%emt 0:00:00]} c6 {[%emt 0:00:00]} 2. d4 {[%emt 0:00:04]} d5 3. Nc3 dxe4 {[%emt 0:00:38]} 4. Nxe4 {[%emt 0:00:36]} Bf5 {[%emt 0:00:10]} 5. Ng3 {[%emt 0:00:07]} Bg6 {[%emt 0:00:16]} 6. h4 {[%emt 0:00:32]} h6 {[%emt 0:00:14]} 7. h5 {[%emt 0:00:06]} Bh7 {[%emt 0:00:05]} 8. Bd3 {[%emt 0:00:07]} Bxd3 {[%emt 0:00:06]} 9. Qxd3 {[%emt 0:00:00]} Nf6 {[%emt 0:00:30]} 10. Nf3 {[%emt 0:02:48]} Nbd7 {[%emt 0:01:40]} 11. Bd2 {[%emt 0:02:20]} e6 12. O-O-O {[%emt 0:00:20]} Be7 {[%emt 0:01:11]} 13. Kb1 {[%emt 0:03:12]} c5 {[%emt 0:08:00]} 14. Bc1 {[%emt 0:15:44]} O-O 15. Ne4 {[%emt 0:00:35]} Nxe4 {[%emt 0:07:05]} 16. Qxe4 {[%emt 0:01:18]} Qc7 {[%emt 0:05:01]} 17. Qe2 {[%emt 0:00:30]} cxd4 {[%emt 0:00:54]} 18. Nxd4 {[%emt 0:02:36]} Nf6 {[%emt 0:12:41]} 19. g4 {[%emt 0:07:24]} Nh7 {[%emt 0:08:16]} 20. f4 {[%emt 0:00:30]} Bf6 {[%emt 0:02:07]} 21. Nf3 {[%emt 0:05:02]} Qa5 {[%emt 0:03:41]} 22. Qg2 {[%emt 0:04:30]} Rfd8 23. g5 {[%emt 0:00:10]} hxg5 {[%emt 0:01:04]} 24. fxg5 {[%emt 0:00:30]} Rxd1 {[%emt 0:00:40]} 25. Rxd1 {[%emt 0:01:36]} Be7 {[%emt 0:00:30]} 26. g6 {[%emt 0:00:30]} fxg6 {[%emt 0:00:30]} 27. hxg6 {[%emt 0:00:30]} Nf6 {[%emt 0:00:03]} 28. Rh1 Kf8 {[%emt 0:05:28]} 29. Ng5 {[%emt 0:01:56]} Qd5 30. Qxd5 {[%emt 0:01:06]} exd5 {[%emt 0:01:57]} 31. Rh8+ {[%emt 0:00:04] normal Nh7 Nxh7#} 1-0

[Event "DVM U14 2019"]
[Site "Magedburg"]
[Date "2019.12.27"]
[Round "2"]
[White "Gilbert, Tim"]
[Black "Morgenstern, Tobias"]
[Result "0-1"]
[ECO "C55"]
[WhiteElo "1660"]
[BlackElo "1943"]
[Annotator "NA"]
[PlyCount "72"]
[EventDate "2019.12.27"]
[EventType "team-tourn"]
[EventRounds "7"]
[EventCountry "GER"]
[SourceTitle "playchess.com"]
[Source "ChessBase"]
[SourceQuality "1"]
[WhiteTeam "SC Erlangen"]
[BlackTeam "Schachzwerge Magdeburg"]
[TimeControl "40/5400+30:1800+30"]

1. e4 {[%emt 0:00:00]} e5 {[%emt 0:00:00]} 2. Nf3 {[%emt 0:00:00]} Nc6 {[%emt 0:00:00]} 3. Bc4 {[%emt 0:00:08]} Nf6 {[%emt 0:00:00]} 4. d3 {[%emt 0:00:26]} d5 {[%emt 0:00:10]} 5. exd5 {[%emt 0:00:53]} Nxd5 {[%emt 0:00:08]} 6. h3 {[%emt 0:01:25]} Be7 {[%emt 0:05:12]} 7. O-O {[%emt 0:03:45]} Be6 {[%emt 0:04:04]} 8. Re1 {[%emt 0:03:22]} Qd6 {[%emt 0:02:16]} 9. Nbd2 {[%emt 0:04:11]} f6 {[%emt 0:01:13]} 10. Ne4 {[%emt 0:01:17]} Qd7 {[%emt 0:00:29]} 11. Bd2 {[%emt 0:14:23]} O-O-O {[%emt 0:02:08]} 12. Bxd5 {[%emt 0:04:48]} Bxd5 {[%emt 0:01:16]} 13. c4 {[%emt 0:01:20]} Bf7 {[%emt 0:08:35]} 14. Rc1 {[%emt 0:21:38]} Qxd3 {[%emt 0:05:20]} 15. Qa4 {[%emt 0:03:35]} Kb8 {[%emt 0:11:38]} 16. c5 {[%emt 0:11:59]} Nd4 {[%emt 0:02:09]} 17. Nxd4 {[%emt 0:08:08]} Rxd4 {[%emt 0:01:36]} 18. Qc2 {[%emt 0:02:39]} Qxc2 {[%emt 0:01:31]} 19. Rxc2 {[%emt 0:00:16]} Bxa2 {[%emt 0:00:27]} 20. c6 {[%emt 0:06:22]} Bd5 {[%emt 0:02:44]} 21. Ng3 {[%emt 0:03:36]} Bxc6 {[%emt 0:01:24]} 22. Nf5 {[%emt 0:00:31]} Rxd2 {[%emt 0:01:19]} 23. Rxd2 {[%emt 0:01:37]} Bb4 {[%emt 0:00:11]} 24. Red1 {[%emt 0:00:29]} Bxd2 {[%emt 0:00:10]} 25. Rxd2 {[%emt 0:00:27]} g6 {[%emt 0:00:14]} 26. Ne7 {[%emt 0:00:53]} Bb5 {[%emt 0:00:23]} 27. Nd5 {[%emt 0:00:21]} Rd8 {[%emt 0:00:17]} 28. Rd1 {[%emt 0:00:41]} Ba4 {[%emt 0:00:54]} 29. Ra1 {[%emt 0:00:12]} Rxd5 {[%emt 0:00:47]} 30. Rxa4 {[%emt 0:00:10]} Rd1+ {[%emt 0:00:20]} 31. Kh2 {[%emt 0:00:13]} Rd2 {[%emt 0:00:04]} 32. Rh4 {[%emt 0:00:41]} h5 {[%emt 0:00:31]} 33. g4 {[%emt 0:00:46]} Rxf2+ {[%emt 0:01:04]} 34. Kg3 {[%emt 0:00:04]} Rxb2 {[%emt 0:00:24]} 35. gxh5 {[%emt 0:00:21]} gxh5 {[%emt 0:00:10]} 36. Rxh5 {[%emt 0:00:14]} a5 {[%emt 0:00:18] normal} 0-1

[Event "DVM U14 2019"]
[Site "Magedburg"]
[Date "2019.12.27"]
[Round "2"]
[White "Frank, Marek"]
[Black "Rohm, Linus"]
[Result "1-0"]
[ECO "A30"]
[WhiteElo "1430"]
[BlackElo "1525"]
[Annotator "NA"]
[PlyCount "65"]
[EventDate "2019.12.27"]
[EventType "team-tourn"]
[EventRounds "7"]
[EventCountry "GER"]
[SourceTitle "playchess.com"]
[Source "ChessBase"]
[SourceQuality "1"]
[WhiteTeam "ESV Gera"]
[BlackTeam "SchachAkademiePaderborn"]
[TimeControl "40/5400+30:1800+30"]

1. c4 c5 2. g3 Nf6 {[%emt 0:00:02]} 3. Bg2 {[%emt 0:00:30]} d5 {[%emt 0:00:00]} 4. cxd5 {[%emt 0:02:34]} Nxd5 {[%emt 0:01:06]} 5. Nf3 Nc6 {[%emt 0:00:41]} 6. O-O {[%emt 0:00:15]} e5 {[%emt 0:01:37]} 7. d3 {[%emt 0:07:05]} Be7 {[%emt 0:03:09]} 8. b3 {[%emt 0:00:30]} O-O {[%emt 0:00:30]} 9. Bb2 {[%emt 0:00:06]} f6 {[%emt 0:01:25]} 10. Nc3 {[%emt 0:02:14]} Nc7 {[%emt 0:00:30]} 11. Rc1 {[%emt 0:00:30]} Bd7 {[%emt 0:02:32]} 12. a3 {[%emt 0:07:36]} a5 {[%emt 0:15:59]} 13. Na4 {[%emt 0:09:12]} Ne6 {[%emt 0:00:30]} 14. Nc3 {[%emt 0:00:30]} Rb8 {[%emt 0:00:30]} 15. Nd5 {[%emt 0:00:30]} Bd6 {[%emt 0:00:30]} 16. Nd2 {[%emt 0:00:30]} b5 {[%emt 0:00:30]} 17. Ne4 {[%emt 0:00:30]} Be8 {[%emt 0:00:30]} 18. e3 {[%emt 0:00:30]} Ne7 {[%emt 0:00:30]} 19. Nxd6 {[%emt 0:00:30]} Qxd6 {[%emt 0:00:30]} 20. Nxe7+ {[%emt 0:00:30]} Qxe7 {[%emt 0:00:30]} 21. Re1 {[%emt 0:00:30]} Rd8 {[%emt 0:00:30]} 22. Qc2 {[%emt 0:00:30]} Bg6 {[%emt 0:00:30]} 23. Rcd1 {[%emt 0:00:30]} Qd6 {[%emt 0:00:30]} 24. Bf1 {[%emt 0:00:30]} Ng5 {[%emt 0:00:30]} 25. Qe2 {[%emt 0:00:30]} Qd5 {[%emt 0:00:30]} 26. Bg2 {[%emt 0:00:30]} Qxb3 {[%emt 0:00:30]} 27. d4 {[%emt 0:00:30]} exd4 {[%emt 0:00:30]} 28. exd4 {[%emt 0:00:30]} Rfe8 {[%emt 0:00:30]} 29. Qd2 {[%emt 0:00:30]} Rxe1+ {[%emt 0:00:30]} 30. Rxe1 {[%emt 0:00:30]} Qa4 {[%emt 0:00:30]} 31. h4 {[%emt 0:00:30]} Nf7 {[%emt 0:00:30] normal} 32. dxc5 h6 33. Qe2 {normal} 1-0

[Event "DVM U14 2019"]
[Site "Magedburg"]
[Date "2019.12.27"]
[Round "2"]
[White "Gering, Jakob"]
[Black "Gerber, Anna Sophie"]
[Result "0-1"]
[ECO "A45"]
[WhiteElo "1311"]
[BlackElo "1513"]
[Annotator "NA"]
[PlyCount "50"]
[EventDate "2019.12.27"]
[EventType "team-tourn"]
[EventRounds "7"]
[EventCountry "GER"]
[SourceTitle "playchess.com"]
[Source "ChessBase"]
[SourceQuality "1"]
[WhiteTeam "SchachAkademiePaderborn"]
[BlackTeam "ESV Gera"]
[TimeControl "40/5400+30:1800+30"]

1. d4 {[%emt 0:00:00]} Nf6 {[%emt 0:00:00]} 2. Bf4 {[%emt 0:00:00]} e6 {[%emt 0:00:10]} 3. e3 d5 {[%emt 0:00:38]} 4. c3 {[%emt 0:00:31]} c5 {[%emt 0:01:53]} 5. Nd2 {[%emt 0:00:12]} Be7 {[%emt 0:00:43]} 6. Ngf3 {[%emt 0:00:38]} O-O {[%emt 0:00:21]} 7. Bd3 {[%emt 0:00:23]} Nc6 {[%emt 0:02:56]} 8. Ne5 {[%emt 0:01:18]} cxd4 {[%emt 0:03:32]} 9. exd4 {[%emt 0:00:23]} Bd6 {[%emt 0:07:49]} 10. h4 {[%emt 0:07:04]} Qc7 {[%emt 0:11:37]} 11. Qe2 {[%emt 0:05:27]} a6 {[%emt 0:06:01]} 12. g4 {[%emt 0:02:58]} Nd7 {[%emt 0:04:43]} 13. Ndf3 {[%emt 0:04:13]} b5 {[%emt 0:04:52]} 14. g5 {[%emt 0:02:12]} b4 {[%emt 0:06:18]} 15. Bxh7+ {[%emt 0:15:42]} Kh8 {[%emt 0:12:50]} 16. g6 {[%emt 0:21:24]} Ncxe5 {[%emt 0:03:25]} 17. Nxe5 {[%emt 0:00:51]} Nf6 {[%emt 0:05:37]} 18. cxb4 {[%emt 0:08:29]} Nxh7 {[%emt 0:04:08]} 19. gxh7 {[%emt 0:02:25]} Kxh7 {[%emt 0:01:11]} 20. Qh5+ {[%emt 0:00:34]} Kg8 {[%emt 0:00:32]} 21. Bh6 {[%emt 0:00:29]} Bxe5 {[%emt 0:06:02]} 22. dxe5 {[%emt 0:01:47]} gxh6 {[%emt 0:02:11]} 23. Qxh6 {[%emt 0:00:17]} Qxe5+ {[%emt 0:00:09]} 24. Kf1 {[%emt 0:00:15]} f5 {[%emt 0:00:48]} 25. Rg1+ {[%emt 0:00:17]} Kf7 {[%emt 0:00:03] normal} 0-1

[Event "DVM U14 2019"]
[Site "Magedburg"]
[Date "2019.12.28"]
[Round "3"]
[White "Eilenberg, Jonas"]
[Black "Weihrauch, Jakob"]
[Result "*"]
[ECO "D05"]
[WhiteElo "2112"]
[BlackElo "2169"]
[Annotator "RC"]
[PlyCount "42"]
[EventDate "2019.12.27"]
[EventType "team-tourn"]
[EventRounds "7"]
[EventCountry "GER"]
[SourceTitle "playchess.com"]
[Source "ChessBase"]
[SourceQuality "1"]
[WhiteTeam "SV Königsjäger Süd-West"]
[BlackTeam "Hamburger SK"]
[WhiteTeamCountry "GER"]
[BlackTeamCountry "GER"]
[TimeControl "40/5400+30:1800+30"]

1. d4 {[%emt 0:00:00]} Nf6 {[%emt 0:00:00]} 2. Nf3 {[%emt 0:00:00]} e6 {[%emt 0:00:00]} 3. e3 {[%emt 0:00:00]} d5 {[%emt 0:02:39]} 4. Bd3 {[%emt 0:00:13]} c5 {[%emt 0:00:16]} 5. c3 {[%emt 0:00:11]} Nc6 {[%emt 0:00:38]} 6. O-O {[%emt 0:00:07]} Be7 {[%emt 0:00:02]} 7. Nbd2 {[%emt 0:00:07]} O-O {[%emt 0:00:12]} 8. dxc5 {[%emt 0:00:04]} Bxc5 {[%emt 0:00:06]} 9. b4 {[%emt 0:00:04]} Be7 {[%emt 0:00:07]} 10. Bb2 {[%emt 0:00:07]} e5 {[%emt 0:00:44]} 11. e4 {[%emt 0:01:22]} Bg4 {[%emt 0:01:48]} 12. b5 {[%emt 0:05:14]} Na5 {[%emt 0:01:07]} 13. Qc2 {[%emt 0:06:35]} dxe4 {[%emt 0:06:41]} 14. Bxe4 {[%emt 0:01:17]} Qc7 {[%emt 0:02:34]} 15. c4 {[%emt 0:08:31]} Nxe4 {[%emt 0:04:36]} 16. Qxe4 {[%emt 0:00:13]} Bxf3 {[%emt 0:02:17]} 17. gxf3 {[%emt 0:08:17]} Rad8 {[%emt 0:17:22]} 18. Nb3 {[%emt 0:09:04]} f5 {[%emt 0:17:12]} 19. Qxe5 {[%emt 0:01:57]} Qxe5 {[%emt 0:00:15]} 20. Bxe5 {[%emt 0:00:02]} Nxc4 {[%emt 0:00:10] unterminated} 21. f4 {[%emt 0:02:57] unterminated} Rd5 {[%emt 0:02:35] unterminated} *

[Event "DVM U14 2019"]
[Site "Magedburg"]
[Date "2019.12.28"]
[Round "3"]
[White "Garner, Isaac"]
[Black "Abed, Karim"]
[Result "*"]
[ECO "B38"]
[WhiteElo "2040"]
[BlackElo "1513"]
[Annotator "NA RC"]
[PlyCount "39"]
[EventDate "2019.12.27"]
[EventType "team-tourn"]
[EventRounds "7"]
[EventCountry "GER"]
[SourceTitle "playchess.com"]
[Source "ChessBase"]
[SourceQuality "1"]
[WhiteTeam "Hamburger SK"]
[BlackTeam "SV Königsjäger Süd-West"]
[WhiteTeamCountry "GER"]
[BlackTeamCountry "GER"]
[TimeControl "40/5400+30:1800+30"]

1. e4 {[%emt 0:00:00]} c5 {[%emt 0:00:00]} 2. Nf3 {[%emt 0:00:00]} Nc6 {[%emt 0:00:00]} 3. d4 {[%emt 0:00:00]} cxd4 {[%emt 0:00:00]} 4. Nxd4 {[%emt 0:00:00]} g6 {[%emt 0:00:03]} 5. c4 {[%emt 0:00:00]} Bg7 {[%emt 0:00:33]} 6. Be3 {[%emt 0:00:06]} Nf6 {[%emt 0:00:23]} 7. Nc3 {[%emt 0:00:08]} d6 {[%emt 0:00:30]} 8. Be2 {[%emt 0:00:34]} O-O {[%emt 0:00:54]} 9. O-O {[%emt 0:00:57] unterminated} Bd7 {[%emt 0:01:40] unterminated} 10. Rc1 {[%emt 0:03:32] unterminated} Rc8 {unterminated} 11. f3 {[%emt 0:00:56] unterminated} a6 $14 {[%emt 0:20:22] unterminated} 12. Qd2 {[%emt 0:08:30] unterminated} h5 {[%emt 0:05:39] unterminated} 13. Rfd1 {[%emt 0:08:04]} Ne5 {[%emt 0:01:18] unterminated} 14. b3 {[%emt 0:01:31] unterminated} Qc7 {[%emt 0:05:29] unterminated} 15. Nd5 {[%emt 0:02:51] unterminated} Nxd5 {[%emt 0:05:41] unterminated} 16. cxd5 {[%emt 0:06:31]} Qb8 {[%emt 0:00:29] unterminated} 17. h3 {[%emt 0:01:10] unterminated} Rxc1 {[%emt 0:01:29]} 18. Rxc1 {[%emt 0:00:08] unterminated} Bc8 {[%emt 0:01:58] unterminated} 19. Qb4 {unterminated} Nd7 {[%emt 0:03:43] unterminated} 20. Qc4 {[%emt 0:07:53] unterminated} *

[Event "DVM U14 2019"]
[Site "Magedburg"]
[Date "2019.12.28"]
[Round "3"]
[White "Morgenstern, Tobias"]
[Black "Frank, Marek"]
[Result "*"]
[ECO "B90"]
[WhiteElo "1943"]
[BlackElo "1430"]
[Annotator "NA RC"]
[PlyCount "32"]
[EventDate "2019.12.27"]
[EventType "team-tourn"]
[EventRounds "7"]
[EventCountry "GER"]
[SourceTitle "playchess.com"]
[Source "ChessBase"]
[SourceQuality "1"]
[WhiteTeam "Schachzwerge Magdeburg"]
[BlackTeam "ESV Gera"]
[WhiteTeamCountry "GER"]
[BlackTeamCountry "GER"]
[TimeControl "40/5400+30:1800+30"]

1. e4 {[%emt 0:00:00]} c5 {[%emt 0:00:00]} 2. Nf3 {[%emt 0:00:00]} d6 {[%emt 0:00:00]} 3. d4 {[%emt 0:00:00]} cxd4 {[%emt 0:00:01]} 4. Nxd4 {[%emt 0:00:08]} Nf6 {[%emt 0:00:13]} 5. Nc3 {[%emt 0:00:22]} a6 {[%emt 0:00:09] unterminated} 6. Qf3 {[%emt 0:03:51] unterminated} e5 {[%emt 0:05:47]} 7. Nf5 {[%emt 0:00:58] unterminated} Nc6 {[%emt 0:07:33] unterminated} 8. Be3 $11 {[%emt 0:14:40] unterminated} (8. Bg5 $14) 8... g6 {[%emt 0:10:42]} 9. Nh6 {[%emt 0:01:13] unterminated} Bxh6 {[%emt 0:01:20]} 10. Bxh6 {[%emt 0:00:18]} Nd4 {[%emt 0:00:27] unterminated} 11. Qd3 {[%emt 0:01:10]} Ng4 {[%emt 0:01:40] unterminated} 12. Bd2 {[%emt 0:08:02] unterminated} Qh4 {[%emt 0:04:27] unterminated} 13. Nd1 {[%emt 0:02:33] unterminated} Bd7 {[%emt 0:03:10] unterminated} 14. c3 {[%emt 0:12:59] unterminated} Bb5 {[%emt 0:10:54]} 15. Qb1 {[%emt 0:00:48] unterminated} Bxf1 {unterminated} 16. Kxf1 {[%emt 0:03:45] unterminated} Ne6 {[%emt 0:07:16] unterminated} *

[Event "DVM U14 2019"]
[Site "Magedburg"]
[Date "2019.12.28"]
[Round "3"]
[White "Zeuner, Ole"]
[Black "Schubert, Nikita"]
[Result "*"]
[ECO "C90"]
[WhiteElo "1794"]
[BlackElo "1914"]
[Annotator "NA RC"]
[PlyCount "46"]
[EventDate "2019.12.27"]
[EventType "team-tourn"]
[EventRounds "7"]
[EventCountry "GER"]
[SourceTitle "playchess.com"]
[Source "ChessBase"]
[SourceQuality "1"]
[WhiteTeam "Schachzwerge Magdeburg"]
[BlackTeam "ESV Gera"]
[WhiteTeamCountry "GER"]
[BlackTeamCountry "GER"]
[TimeControl "40/5400+30:1800+30"]

1. e4 {[%emt 0:00:00]} e5 {[%emt 0:00:00]} 2. Nf3 {[%emt 0:00:00]} Nc6 {[%emt 0:00:00]} 3. Bb5 {[%emt 0:00:00]} a6 {[%emt 0:00:02]} 4. Ba4 {[%emt 0:00:00]} Nf6 {[%emt 0:01:19]} 5. d3 {[%emt 0:00:00]} b5 {[%emt 0:00:32]} 6. Bb3 {[%emt 0:00:01]} Be7 {[%emt 0:11:02]} 7. O-O {[%emt 0:00:10]} d6 {[%emt 0:00:40]} 8. c3 {[%emt 0:00:06]} O-O {[%emt 0:01:12]} 9. Re1 {[%emt 0:00:05]} Na5 {[%emt 0:05:21]} 10. Bc2 {[%emt 0:00:03]} c5 {[%emt 0:00:12]} 11. Nbd2 {[%emt 0:00:09]} Re8 {[%emt 0:07:35]} 12. Nf1 {[%emt 0:00:15]} Bf8 {[%emt 0:00:35]} 13. Ne3 {[%emt 0:00:16] unterminated} g6 {[%emt 0:10:42] unterminated} 14. h3 {[%emt 0:05:34] unterminated} Bg7 {[%emt 0:04:29] unterminated} 15. Nh2 {[%emt 0:06:57] unterminated} Be6 {[%emt 0:04:12] unterminated} 16. Nhg4 {[%emt 0:01:08] unterminated} h5 {[%emt 0:08:15] unterminated} 17. Nh2 {[%emt 0:04:39] unterminated} Nc6 {[%emt 0:04:08] unterminated} 18. Nf3 {[%emt 0:02:21] unterminated} Rf8 {[%emt 0:07:09]} 19. Ng5 {[%emt 0:02:34] unterminated} Bd7 {[%emt 0:00:49]} 20. Bb3 {[%emt 0:00:35]} Na5 {[%emt 0:00:51] unterminated} 21. Bc2 {[%emt 0:01:12]} Nc6 {[%emt 0:00:18] unterminated} 22. Rf1 {[%emt 0:02:42]} Nh7 {[%emt 0:02:28] unterminated} 23. Nxh7 {[%emt 0:01:45]} Kxh7 {[%emt 0:00:16] unterminated} *

[Event "DVM U14 2019"]
[Site "Magedburg"]
[Date "2019.12.28"]
[Round "3"]
[White "Huo, Da"]
[Black "Korek, Jakob Alexander"]
[Result "*"]
[ECO "B18"]
[WhiteElo "1771"]
[BlackElo "1656"]
[Annotator "NA RC"]
[PlyCount "47"]
[EventDate "2019.12.27"]
[EventType "team-tourn"]
[EventRounds "7"]
[EventCountry "GER"]
[SourceTitle "playchess.com"]
[Source "ChessBase"]
[SourceQuality "1"]
[WhiteTeam "Hamburger SK"]
[BlackTeam "SV Königsjäger Süd-West"]
[WhiteTeamCountry "GER"]
[BlackTeamCountry "GER"]
[TimeControl "40/5400+30:1800+30"]

1. e4 {[%emt 0:00:00]} c6 {[%emt 0:00:00]} 2. d4 {[%emt 0:00:00]} d5 {[%emt 0:00:00]} 3. Nd2 {[%emt 0:00:38]} dxe4 4. Nxe4 {[%emt 0:00:08]} Bf5 {[%emt 0:00:14]} 5. Ng3 {[%emt 0:00:05]} Bg6 {[%emt 0:00:06]} 6. h4 {[%emt 0:00:08]} h6 {[%emt 0:00:12]} 7. h5 {[%emt 0:00:07]} Bh7 {[%emt 0:00:09]} 8. Nf3 {[%emt 0:00:09]} Nd7 {[%emt 0:00:25]} 9. Bd3 {[%emt 0:00:11]} Bxd3 {[%emt 0:00:15]} 10. Qxd3 {[%emt 0:00:04]} e6 {[%emt 0:00:55] unterminated} 11. Bd2 {[%emt 0:01:58] unterminated} Ngf6 {[%emt 0:00:38] unterminated} 12. O-O-O {[%emt 0:04:15] unterminated} Bd6 {[%emt 0:02:43] unterminated} 13. Ne4 {[%emt 0:00:56]} Nxe4 {unterminated} 14. Qxe4 {[%emt 0:00:08] unterminated} Nf6 {[%emt 0:01:25]} 15. Qe2 {[%emt 0:00:14] unterminated} Qc7 {[%emt 0:01:48] unterminated} 16. Kb1 {[%emt 0:02:58] unterminated} O-O {[%emt 0:00:56] unterminated} 17. Rdg1 {[%emt 0:10:27] unterminated} c5 {[%emt 0:02:02] unterminated} 18. g4 {[%emt 0:01:56] unterminated} Nd5 {[%emt 0:06:25] unterminated} 19. g5 {[%emt 0:12:21] unterminated} hxg5 {[%emt 0:03:08] unterminated} 20. Nxg5 {[%emt 0:23:02] unterminated} Nf4 {[%emt 0:02:22] unterminated} 21. Bxf4 {[%emt 0:06:48] unterminated} Bxf4 {[%emt 0:00:24]} 22. Qe4 {[%emt 0:00:21] unterminated} Bxg5 {[%emt 0:03:00]} 23. Rxg5 {[%emt 0:00:26] unterminated} Kh8 {[%emt 0:08:27] unterminated} 24. Rhg1 {[%emt 0:05:00] unterminated} *

[Event "DVM U14 2019"]
[Site "Magedburg"]
[Date "2019.12.28"]
[Round "3"]
[White "Sohr, Jim"]
[Black "von Krosigk, Florian"]
[Result "*"]
[ECO "E32"]
[WhiteElo "1730"]
[BlackElo "1984"]
[Annotator "NA RC"]
[PlyCount "31"]
[EventDate "2019.12.27"]
[EventType "team-tourn"]
[EventRounds "7"]
[EventCountry "GER"]
[SourceTitle "playchess.com"]
[Source "ChessBase"]
[SourceQuality "1"]
[WhiteTeam "SV Königsjäger Süd-West"]
[BlackTeam "Hamburger SK"]
[WhiteTeamCountry "GER"]
[BlackTeamCountry "GER"]
[TimeControl "40/5400+30:1800+30"]

1. d4 {[%emt 0:00:00]} Nf6 {[%emt 0:00:00]} 2. c4 {[%emt 0:00:00]} e6 {[%emt 0:00:00]} 3. Nc3 {[%emt 0:00:00]} Bb4 {[%emt 0:00:00]} 4. Qc2 {[%emt 0:00:00]} O-O {[%emt 0:00:17]} 5. a3 {[%emt 0:00:04]} Bxc3+ {[%emt 0:00:12]} 6. Qxc3 {[%emt 0:00:31]} d6 {[%emt 0:00:24] unterminated} 7. Nf3 {[%emt 0:05:46]} Re8 {[%emt 0:00:36] unterminated} 8. e3 {[%emt 0:03:54] unterminated} Qe7 {[%emt 0:09:10] unterminated} 9. Be2 {[%emt 0:05:09]} e5 $11 {[%emt 0:01:26] unterminated} 10. dxe5 {[%emt 0:07:36] unterminated} dxe5 {[%emt 0:04:41] unterminated} 11. O-O {[%emt 0:02:18] unterminated} h6 {[%emt 0:10:40] unterminated} 12. b4 {[%emt 0:06:05] unterminated} Bf5 {[%emt 0:02:40] unterminated} 13. Bb2 {[%emt 0:03:54] unterminated} Nbd7 {[%emt 0:00:37] unterminated} 14. Nd2 {[%emt 0:03:04]} c5 {[%emt 0:02:11] unterminated} 15. Bd1 {[%emt 0:10:27] unterminated} Rac8 {[%emt 0:18:08] unterminated} 16. Ba4 {[%emt 0:04:59] unterminated} *